Cogmind - Beta 10.2 @@@ ROGUE MODE // 2020.11.18 @ 18:07:02 // Halloween2020/ForbiddenLore Player: IAMCRAIG Result: Destroyed by Y-54 Guardian with Gatling Laser Performance ------------- Evolutions (3) 1500 Regions Visited (10) 2000 Robots Destroyed (282) 1410 Value Destroyed (10825) 10825 Prototype IDs (21) 420 Alien Tech Used (0) 0 Bonus (4479) 4479 TOTAL SCORE: 20634 Bonus ------- High Alert Combat Kills 2466 Follower Combat Kills 553 Entered Garrisons 600 Used RIF Installer 1000 Friendly Fire -140 Cogmind --------- Core Integrity 0/700 Matter 293/300 Energy 160/160 System Corruption 5% Temperature Cool (149) Movement Hovering (72) Location -7/Garrison Parts ------- > --- POWER (1) -------- Light Nuclear Core > --- PROPULSION (3) --- Combat Airjet Combat Airjet Combat Airjet > --- UTILITY (6) ------ Improved Heat Sink High-capacity Storage Unit Long-range Sensor Array Advanced Targeting Computer Improved Light Armor Plating Relay Coupler [Hunter] (18) > --- WEAPON (3) ------- Gatling Laser Power Sword > --- INVENTORY (12) --- Cooled Airjet Cooled Airjet Cooled Airjet High-capacity Battery (400) High-capacity Matter Pod (200) Advanced Terrain Scanner Weapon Cycler Relay Coupler [NC] (22) Relay Coupler [Grunt] (30) Heavy Phase Cannon Heavy Phase Cannon Remote Datajack Peak State ------------ > --- POWER ------------ Light Angular Momentum Engine > --- PROPULSION ------- Combat Airjet Combat Airjet Combat Airjet > --- UTILITY ---------- Improved Heat Sink High-capacity Storage Unit Advanced Targeting Computer Improved Medium Armor Plating Improved Shield Generator Relay Coupler [Hunter] > --- WEAPON ----------- Precision Shock Rifle Precision Shock Rifle Remote Datajack > --- INVENTORY -------- Cooled Airjet Cooled Airjet Cooled Airjet High-capacity Battery High-capacity Matter Pod Long-range Sensor Array Advanced Terrain Scanner Weapon Cycler Relay Coupler [NC] Heavy Phase Cannon Heavy Phase Cannon Power Sword [Rating: 58] Favorites ----------- Power Cooled Ion Engine Engine Cooled Ion Engine Power Core Light Nuclear Core Propulsion Light Treads Treads Light Treads Leg Carbon-fiber Leg Wheel Compact Wheel Hover Unit Combat Airjet Flight Unit Improved Flight Unit Utility High-capacity Storage Unit Device Cooling System Storage High-capacity Storage Unit Processor Advanced Targeting Computer Hackware Relay Coupler [Grunt] Protection Light Armor Plating Weapon Autogun Energy Gun Precision Beam Rifle Energy Cannon Cooled Particle Cannon Ballistic Gun Autogun Launcher Advanced EMP Blaster Special Weapon Remote Datajack Slashing Weapon Scythe Special Melee Weapon Improved Datajack Build | -11 -10 -10 -9 -9 -8 -8 -8 -8 -7 -7 ------- Run | Scr Mat Min Mat Min Mat Gar Mat Gar Fac Gar Slots Evolved 6 | . . . 2 . 2 . . . 2 . Power . | . . . . . . . . . . . Propulsion 1 | . . . . . 1 . . . . . Utility 4 | . . . 1 . 1 . . . 2 . Weapon 1 | . . . 1 . . . . . . . Parts Attached 282 | 8 18 5 32 6 32 6 40 29 76 30 Power 30 | 1 4 3 4 . 1 . 2 3 8 4 Engine 19 | 1 4 3 4 . 1 . 1 . 3 2 Core 11 | . . . . . . . 1 3 5 2 Reactor . | . . . . . . . . . . . Propulsion 88 | 3 6 . 12 2 18 2 14 6 19 6 Treads 65 | 1 4 . 12 2 14 1 13 3 14 1 Leg 9 | . . . . . 3 1 . 3 1 1 Wheel 5 | 2 1 . . . . . . . 2 . Hover 7 | . . . . . 1 . . . 2 4 Flight 2 | . 1 . . . . . 1 . . . Utility 74 | 2 4 . 6 1 3 1 10 7 31 9 Device 29 | . . . . . 2 1 9 1 12 4 Storage 12 | 2 3 . 2 1 1 . 1 1 1 . Processor 4 | . 1 . 1 . . . . . 2 . Hackware 12 | . . . . . . . . 5 5 2 Protection 17 | . . . 3 . . . . . 11 3 Artifact . | . . . . . . . . . . . Weapon 90 | 2 4 2 10 3 10 3 14 13 18 11 Energy Gun 25 | . . . 3 . 8 . 4 1 5 4 Energy Cannon 10 | . . . 1 1 . . . 1 6 1 Ballistic Gun 30 | 2 4 2 6 1 2 2 5 3 2 1 Ballistic Cannon . | . . . . . . . . . . . Launcher 4 | . . . . 1 . . 1 . 2 . Special Weapon 4 | . . . . . . . . . 2 2 Impact Weapon . | . . . . . . . . . . . Slashing Weapon 12 | . . . . . . 1 4 3 1 3 Piercing Weapon . | . . . . . . . . . . . Special Melee Weapon 5 | . . . . . . . . 5 . . Unidentified Prototypes 15 | . 1 . 5 . 3 . 4 . 2 . Parts Lost 34 | . . . . . . . 3 6 18 7 Power 6 | . . . . . . . 1 1 3 1 Propulsion 8 | . . . . . . . 2 2 3 1 Utility 5 | . . . . . . . . . 5 . Weapon 15 | . . . . . . . . 3 7 5 Highest Loss Streak 9 | . . . . . . . 1 5 9 3 Average Slot Usage (%) 98 | . 99 100 98 100 98 100 99 99 96 98 Engine 7 | . 14 14 10 11 8 9 6 . 2 6 Core 1 | . . . . . . . 2 8 3 . Treads 21 | . 21 28 21 22 25 27 26 16 16 12 Leg 1 | . . . . . . . . 10 4 . Device 4 | . . . . . 8 9 9 . 7 9 Storage 19 | . 21 28 22 22 18 18 18 18 15 11 Processor 7 | . 6 . 6 11 9 9 9 9 7 7 Hackware 2 | . . . . . . . . 8 7 8 Protection 1 | . . . 3 . . . . . 3 6 Energy Gun 7 | . . . 6 11 19 18 5 5 3 12 Energy Cannon 2 | . . . . 9 1 . . 3 11 . Ballistic Gun 13 | . 27 28 26 12 5 7 20 9 1 1 Naked Turns . | . . . . . . . . . . . Heaviest Build 118 | 15 73 77 84 82 88 81 85 81 118 93 Greatest Support 68 | 26 46 46 46 40 62 62 64 60 68 68 Greatest Overweight (x) 7 | . 4 1 4 2 2 1 1 3 7 2 Average Overweight (x) 1 | . 1 1 1 2 1 1 1 1 1 . Largest Inventory Capacity 20 | 8 20 20 20 20 20 20 20 20 20 20 Average Capacity 19 | 5 14 20 20 20 20 20 20 20 20 16 Most Carried 20 | 6 20 20 20 20 20 20 20 20 20 20 Average Carried 19 | 4 14 19 19 19 19 19 19 19 19 16 Final Capacity 20 | 8 20 20 20 20 20 20 20 20 20 12 Final Carried 20 | 6 20 20 20 20 20 20 20 20 20 12 Class Distribution -------------------- 46% | Hauler-Gunner 31% | Hauler-Mutant 9% | Bothacker-Mutant 4% | Mutant 4% | Hauler-Tank 3% | Scavenger-Mutant Dominant Class ---------------- Mutant | -10/Materials Hauler-Mutant | -10/Mines Hauler-Gunner | -9/Materials Hauler-Gunner | -9/Mines Hauler-Gunner | -8/Materials Hauler-Gunner | -8/Garrison Hauler-Gunner | -8/Materials Hauler-Mutant | -8/Garrison Bothacker-Mutant | -7/Factory Hauler-Mutant | -7/Garrison Resources | -11 -10 -10 -9 -9 -8 -8 -8 -8 -7 -7 ----------- Run | Scr Mat Min Mat Min Mat Gar Mat Gar Fac Gar Matter Collected 6691 | 310 766 226 1256 161 468 175 1106 587 1213 423 Remotely . | . . . . . . . . . . . Salvage Created 12159 | 78 604 209 1935 564 1624 771 2296 534 2578 966 Parts 642 | 2 47 14 131 23 92 21 109 33 124 46 Haulers Intercepted 20 | . 2 . 6 . 6 . 3 . 3 . Recyclers Shooed 3 | . . . 1 1 . . 1 . . . Parts Field Recycled . | . . . . . . . . . . . Retrieved Matter . | . . . . . . . . . . . Parts Self-Destructed . | . . . . . . . . . . . Prevented . | . . . . . . . . . . . Kills | -11 -10 -10 -9 -9 -8 -8 -8 -8 -7 -7 ------- Run | Scr Mat Min Mat Min Mat Gar Mat Gar Fac Gar Combat Hostiles Destroyed 222 | . 12 8 30 11 31 15 37 13 44 21 Melee 2 | . . . . . . . . . . 2 Guns 179 | . 12 8 30 3 30 14 37 11 17 17 Cannons 27 | . . . . 2 . . . 2 23 . AOE 11 | . . . . 6 . . . . 4 1 Classes Destroyed 18 | 1 7 . 2 4 . . 2 . 2 . Worker 6 | . 1 . 2 . 1 . 1 . 1 . Builder 3 | . 1 . . . . . 1 . 1 . Tunneler 2 | . . . 2 . . . . . . . Hauler 20 | . 2 . 6 . 6 . 3 . 3 . Recycler 13 | 1 . . 2 4 . . 3 . 3 . Mechanic 1 | . . . . . . . . . 1 . Operator 5 | . 1 . 1 . . . 2 . 1 . Watcher 15 | . 3 . 5 . 3 . 4 . . . Swarmer 57 | . 5 5 6 . 14 . 5 4 6 12 Grunt 99 | . 7 3 16 2 10 12 18 3 22 6 Brawler 4 | . . . . 1 . . 2 1 . . Duelist 11 | . . . . 1 . 2 2 3 3 . Protector 2 | . . . . . . . 1 . 1 . Sentry 31 | . . . 8 . 7 1 7 1 4 3 Demolisher 1 | . . . . 1 . . . . . . Hunter 3 | . . . . . . . 2 1 . . Programmer 8 | . . . . . . . . . 8 . Assembled 6 | . . . . 6 . . . . . . Thug 1 | . . . 1 . . . . . . . Best Kill Streak 20 | 1 4 3 6 7 5 4 7 5 20 5 Combat Bots Only 15 | . 4 3 5 7 4 4 7 5 15 5 Max Kills in Single Turn 3 | 1 2 2 3 3 2 1 2 1 2 1 Gunslinging 1 | . . 1 1 . 1 . . . . . Exploded 3 | . . . . 3 . . . . 2 1 Melee 1 | . . . . . . . . . . 1 Uniques/NPCs Destroyed . | . . . . . . . . . . . Combat | -11 -10 -10 -9 -9 -8 -8 -8 -8 -7 -7 -------- Run | Scr Mat Min Mat Min Mat Gar Mat Gar Fac Gar Damage Taken 11802 | . 461 273 946 155 837 702 1250 976 4761 1441 Core 1482 | . 79 77 168 31 91 151 76 103 543 163 Absorbed by Shields 178 | . . . . . 96 . . . 48 34 Core Remaining (%) 52 | 100 . 37 . 50 . . . 23 . . Volleys Fired 720 | 5 61 21 95 25 69 46 98 37 168 95 Largest 3 | 2 2 2 3 3 3 3 3 3 3 2 Hottest 189 | 40 46 46 91 136 183 147 147 129 189 150 Shots Fired 1574 | 10 122 42 273 50 191 118 270 71 289 138 Gun 1358 | 10 122 42 273 30 187 118 270 66 121 119 Cannon 153 | . . . . 17 4 . . 5 127 . Launcher 7 | . . . . 3 . . . . 4 . Special 56 | . . . . . . . . . 37 19 Kinetic 862 | 10 122 42 234 21 39 30 224 54 79 7 Thermal 473 | . . . . 17 103 88 46 17 169 33 Explosive 3 | . . . . 3 . . . . . . Electromagnetic 180 | . . . 39 9 49 . . . 4 79 Robot Hit Streak 41 | 8 14 5 24 16 31 41 39 22 24 24 Robot Miss Streak 5 | 1 5 2 3 3 4 1 2 1 2 4 Penetration Max . | . . . . . . . . . . . Secondary Targets 27 | . 2 3 6 . 2 . 11 . 3 . Max Gunslinging Chain 1 | . 1 1 1 . 1 . 1 . 1 . Shots Hit Robots 1140 | 8 68 20 180 29 148 90 208 64 228 97 Core Hits 523 | 2 29 10 77 23 71 30 88 21 112 60 Critical Hits 15 | . 3 . . 1 3 . 1 3 2 2 Critical Kills 4 | . 1 . . 1 . . 1 1 . . Critical Parts Destroyed 9 | . 2 . . . 3 . . 1 2 1 Melee Attacks 102 | . . . . . . 5 9 69 . 19 Impact . | . . . . . . . . . . . Slashing 91 | . . . . . . 5 9 58 . 19 Piercing . | . . . . . . . . . . . Sneak Attacks 2 | . . . . . . . . 2 . . Combat Hostiles 1 | . . . . . . . . 1 . . Follow-up Attacks . | . . . . . . . . . . . Damage Inflicted 20305 | 104 815 330 2943 798 2592 1443 3540 996 5089 1655 Guns 15816 | 104 815 310 2781 250 2511 1443 3481 904 1855 1362 Cannons 3128 | . . . . 212 23 . . 92 2801 . Explosions 956 | . . . 109 330 39 . . . 413 65 Melee 196 | . . . . . . . . . . 196 Ramming 209 | . . 20 53 6 19 . 59 . 20 32 Kinetic 8733 | 104 815 310 2092 103 362 290 2734 760 1090 73 Thermal 7971 | . . . 109 212 1370 1153 747 236 3629 515 Explosive 330 | . . . . 330 . . . . . . Electromagnetic 2866 | . . . 689 147 841 . . . 350 839 Impact . | . . . . . . . . . . . Slashing 196 | . . . . . . . . . . 196 Piercing . | . . . . . . . . . . . Highest Corruption 9 | . . . . . 4 4 9 9 5 5 Average Corruption 5 | . . . . . 2 4 8 9 3 5 Corruption Purged . | . . . . . . . . . . . Effects 339 | . . . . . 23 29 108 103 35 41 Message Errors 82 | . . . . . 8 11 14 26 11 12 Matter Fused 70 | . . . . . 4 4 24 24 11 3 Heat Flow Errors 44 | . . . . . 3 3 14 15 1 8 Energy Discharges 29 | . . . . . 4 3 6 8 5 3 Parts Rejected 2 | . . . . . . 1 1 . . . Data Loss (minor) 30 | . . . . . 3 2 10 7 4 4 Data Loss (major) 15 | . . . . . . . 7 5 1 2 Misfires 8 | . . . . . . . 1 3 . 4 Targeting Errors 52 | . . . . . . 3 29 14 2 4 Weapon Failures 7 | . . . . . 1 2 2 1 . 1 Overload Shots 4 | . . . . . . . . . 4 . Overflow Damage 79 | . . . . 26 . . 10 5 38 . Projectiles 56 | . . . . 15 . . . 5 36 . Explosions 13 | . . . . 11 . . . . 2 . Melee 10 | . . . . . . . 10 . . . Knockbacks . | . . . . . . . . . . . Impact . | . . . . . . . . . . . Kinetic . | . . . . . . . . . . . Secondary . | . . . . . . . . . . . Self-Inflicted Damage 48 | . . . 17 . 31 . . . . . Shots 2 | . . . 1 . 1 . . . . . Rammed 22 | . . 3 6 1 3 . 3 . 2 4 Targets Rammed 22 | . . 3 6 1 3 . 3 . 2 4 Kicked . | . . . . . . . . . . . Crushed . | . . . . . . . . . . . Highest Temperature 401 | . 12 29 401 192 241 228 346 394 393 248 Average Temperature 69 | . 5 9 54 48 54 59 78 76 106 82 Received Heat Transfer 3516 | . 120 33 348 38 253 216 450 279 1467 312 Effects 10 | . . . 1 . . . 2 1 5 1 Energy Bleed 2 | . . . . . . . . . 1 1 Interference 5 | . . . . . . . 2 . 3 . Matter Decay 1 | . . . 1 . . . . . . . Short Circuit 1 | . . . . . . . . . 1 . Damage (minor) 1 | . . . . . . . . 1 . . Siege Activations . | . . . . . . . . . . . Robots Corrupted 2 | . . . . . . . . . . 2 Combat Hostiles 1 | . . . . . . . . . . 1 Parts Fried 10 | . . . 2 . 2 . . . . 6 Impact Corruptions 2 | . . . . . . . 2 . . . Robots Melted 2 | . . . . . 1 1 . . . . Combat Hostiles 2 | . . . . . 1 1 . . . . Parts Melted 37 | . . . 1 . 10 5 3 2 14 2 Heat Transferred 13046 | . . . 100 370 2825 2347 1554 423 4833 594 Parts Sabotaged . | . . . . . . . . . . . Parts Stolen . | . . . . . . . . . . . Parts Stripped . | . . . . . . . . . . . Power Chain Reactions 6 | . . . 2 . 1 . . . 2 1 Missiles Intercepted . | . . . . . . . . . . . Alert | -11 -10 -10 -9 -9 -8 -8 -8 -8 -7 -7 ------- Run | Scr Mat Min Mat Min Mat Gar Mat Gar Fac Gar Peak Influence 1410 | 5 184 164 480 290 424 992 1090 1377 1142 1410 Initial 799 | . 3 24 41 151 3 141 483 708 722 799 Average 518 | 1 58 72 259 87 173 628 712 1079 844 1118 Maximum Alert Level 4 | . . . 2 1 2 3 3 4 4 4 Low Security (%) 30 | 100 100 100 20 82 42 10 . . . . Level 1 19 | . . . 72 17 55 8 1 . . . Level 2 10 | . . . 6 . 1 33 55 . 5 . Level 3 29 | . . . . . . 47 43 47 91 39 Level 4 10 | . . . . . . . . 52 2 60 Level 5 . | . . . . . . . . . . . High Security . | . . . . . . . . . . . Max Security . | . . . . . . . . . . . Squads Dispatched 37 | . 3 . 4 . 2 . 8 . 20 . Investigation 9 | . 1 . 3 . 1 . 2 . 2 . Extermination 7 | . . . . . . . . . 7 . Reinforcement 10 | . 2 . 1 . 1 . 4 . 2 . Assault 7 | . . . . . . . 2 . 5 . Garrison 4 | . . . . . . . . . 4 . Intercept . | . . . . . . . . . . . Construction Impeded 1 | . . . . . . . . . 1 . Haulers Reinforced . | . . . . . . . . . . . Stealth | -11 -10 -10 -9 -9 -8 -8 -8 -8 -7 -7 --------- Run | Scr Mat Min Mat Min Mat Gar Mat Gar Fac Gar Distress Signals 6 | . . . 3 . . . 1 . 2 . Communications Jammed . | . . . . . . . . . . . Distress Signals . | . . . . . . . . . . . Times Spotted 382 | . 22 13 46 23 42 19 66 32 77 42 Peak Tracking Total 10 | . 4 3 6 10 5 3 8 7 7 8 Tactical Retreats 26 | . 2 1 2 3 3 . 2 6 3 4 Traps | -11 -10 -10 -9 -9 -8 -8 -8 -8 -7 -7 ------- Run | Scr Mat Min Mat Min Mat Gar Mat Gar Fac Gar Traps Triggered 32 | . . . 3 . 3 5 1 12 3 5 Indirectly . | . . . . . . . . . . . Trap Hack Attempts 57 | . . . . . . . . 57 . . Triggered . | . . . . . . . . . . . Disarmed . | . . . . . . . . . . . Reprogrammed 3 | . . . . . . . . 3 . . Reused 1 | . . . . . . . . 1 . . Traps Extracted . | . . . . . . . . . . . Installed . | . . . . . . . . . . . Triggered 1 | . . . . . . . . 1 . . Machines | -11 -10 -10 -9 -9 -8 -8 -8 -8 -7 -7 ---------- Run | Scr Mat Min Mat Min Mat Gar Mat Gar Fac Gar Machines Disabled 24 | . . 5 2 . . 4 3 6 2 2 Max in Single Turn 2 | . . 1 1 . . 1 1 2 1 1 Garrison Relay 8 | . . . . . . 2 . 4 . 2 Phase Generator 2 | . . . . . . 1 . 1 . . Machines Sabotaged . | . . . . . . . . . . . Garrisons Compromised . | . . . . . . . . . . . Overloaded Fab Kills . | . . . . . . . . . . . Fab Network Shutdowns . | . . . . . . . . . . . Hacking | -11 -10 -10 -9 -9 -8 -8 -8 -8 -7 -7 --------- Run | Scr Mat Min Mat Min Mat Gar Mat Gar Fac Gar Machines Accessed 68 | . 10 1 16 1 13 . 13 . 14 . Terminals 41 | . 7 1 10 1 9 . 7 . 6 . Fabricators 2 | . . . . . . . . . 2 . Repair Stations 6 | . 1 . 2 . 1 . 1 . 1 . Recycling Units 9 | . 2 . 2 . 1 . 2 . 2 . Scanalyzers 6 | . . . 2 . 1 . 2 . 1 . Garrison Access 4 | . . . . . 1 . 1 . 2 . Total Hacks 255 | . 33 3 67 2 68 . 41 . 41 . Successful 179 | . 22 2 47 2 53 . 30 . 23 . Failed 75 | . 11 1 19 . 15 . 11 . 18 . Catastrophic 2 | . . . 1 . . . . . 1 . Database Lockouts 1 | . . . 1 . . . . . . . Manual 140 | . 21 3 41 2 29 . 23 . 21 . Terminals 151 | . 20 3 46 2 38 . 25 . 17 . Fabricators 6 | . . . . . . . . . 6 . Repair Stations 18 | . 2 . 5 . 7 . 2 . 2 . Recycling Units 34 | . 11 . 9 . 2 . 5 . 7 . Scanalyzers 34 | . . . 7 . 18 . 6 . 3 . Garrison Access 12 | . . . . . 3 . 3 . 6 . Terminal Hacks 39 | . 3 1 12 1 12 . 7 . 3 . Record 1 | . . . . . 1 . . . . . Robot Analysis 6 | . 1 1 1 1 2 . . . . . Prototype ID Bank 4 | . . . 2 . 1 . . . 1 . Branch Access Points 4 | . 1 . 1 . 1 . 1 . . . Emergency Access Points 1 | . . . 1 . . . . . . . Terminal Index 1 | . . . . . . . 1 . . . Alert Level 5 | . 1 . 2 . 2 . . . . . Unreport Threat 5 | . . . 2 . 2 . 1 . . . Locate Traps 2 | . . . . . . . 2 . . . Hauler Manifests 4 | . . . 1 . 1 . 1 . 1 . Registered Components 1 | . . . . . 1 . . . . . Registered Prototypes 1 | . . . . . 1 . . . . . Zone Layout 4 | . . . 2 . . . 1 . 1 . Fabricator Hacks 4 | . . . . . . . . . 4 . Load Schematic 2 | . . . . . . . . . 2 . Build 2 | . . . . . . . . . 2 . Repair Station Hacks 16 | . 2 . 4 . 6 . 2 . 2 . Scan Component 8 | . 1 . 2 . 3 . 1 . 1 . Repair 8 | . 1 . 2 . 3 . 1 . 1 . Recycling Unit Hacks 15 | . 5 . 4 . 1 . 2 . 3 . Report Inventory 10 | . 3 . 2 . 1 . 2 . 2 . Retrieve Components 5 | . 2 . 2 . . . . . 1 . Scanalyzer 31 | . . . 6 . 18 . 5 . 2 . Insert Component 14 | . . . 3 . 7 . 3 . 1 . Analyze 17 | . . . 3 . 11 . 2 . 1 . Garrison Access Hacks 4 | . . . . . 1 . 1 . 2 . Unlock Access 4 | . . . . . 1 . 1 . 2 . Unauthorized Hacks 70 | . 12 1 21 1 15 . 13 . 7 . Terminals 50 | . 8 1 15 1 14 . 9 . 2 . Track 12 | . 2 . 4 . 4 . 2 . . . Assimilate 2 | . 2 . . . . . . . . . Botnet 33 | . 4 1 10 1 8 . 7 . 2 . Disrupt 1 | . . . . . 1 . . . . . Operators 2 | . . . 1 . 1 . . . . . Fabricators . | . . . . . . . . . . . Repair Stations . | . . . . . . . . . . . Recycling Units 15 | . 4 . 5 . . . 3 . 3 . Monitor 1 | . 1 . . . . . . . . . Reject 7 | . 1 . 2 . . . 2 . 2 . Mask 4 | . 1 . 2 . . . . . 1 . Tunnel 3 | . 1 . 1 . . . 1 . . . Scanalyzers 1 | . . . 1 . . . . . . . Extract 1 | . . . 1 . . . . . . . Garrison Access 4 | . . . . . 1 . 1 . 2 . Reprogram 4 | . . . . . 1 . 1 . 2 . Data Cores Recovered . | . . . . . . . . . . . Used . | . . . . . . . . . . . Hacking Detections 63 | . 10 1 15 1 11 . 13 . 12 . Full Trace Events 3 | . . . . . 1 . . . 2 . Feedback Events . | . . . . . . . . . . . Feedback Blocked . | . . . . . . . . . . . Robot Schematics Acquired . | . . . . . . . . . . . Robots Built . | . . . . . . . . . . . Matter . | . . . . . . . . . . . Time . | . . . . . . . . . . . Total Robot Build Rating . | . . . . . . . . . . . Part Schematics Acquired 14 | . . . 4 . 7 . 2 . 1 . Parts Built 3 | . . . . . . . . . 3 . Matter 365 | . . . . . . . . . 365 . Time 94 | . . . . . . . . . 94 . Total Part Build Rating 9 | . . . . . . . . . 9 . Parts Repaired 8 | . 1 . 2 . 3 . 1 . 1 . Time 321 | . 26 . 48 . 149 . 60 . 38 . Parts Recycled . | . . . . . . . . . . . Recycled Matter . | . . . . . . . . . . . Retrieved Matter . | . . . . . . . . . . . Retrieved Components 48 | . 19 . 20 . . . . . 9 . Parts Scanalyzed 14 | . . . 3 . 7 . 3 . 1 . Part Schematics Acquired 13 | . . . 3 . 7 . 2 . 1 . Parts Damaged 1 | . . . . . . . 1 . . . Bothacking | -11 -10 -10 -9 -9 -8 -8 -8 -8 -7 -7 ------------ Run | Scr Mat Min Mat Min Mat Gar Mat Gar Fac Gar Used RIF Installer 2 | . . . . . . 1 . 1 . . Hotswap 1 | . . . . . . . . 1 . . Robots Hacked 28 | . . . . . . . . 6 18 4 Non-combat 10 | . . . . . . . . . 10 . Combat 18 | . . . . . . . . 6 8 4 Robot Hacks Applied 42 | . . . . . . . . 7 31 4 parse_system 1 | . . . . . . . . 1 . . no_distress 2 | . . . . . . . . . 2 . generate_echo 1 | . . . . . . . . . 1 . find_chute 2 | . . . . . . . . . 2 . find_fabricator 1 | . . . . . . . . . 1 . drop_inventory 3 | . . . . . . . . . 3 . find_recycling 2 | . . . . . . . . . 2 . ignore_parts 1 | . . . . . . . . . 1 . release_backups 1 | . . . . . . . . . 1 . deconstruct_bot 4 | . . . . . . . . . 4 . purge_threat 1 | . . . . . . . . . 1 . locate_traps 1 | . . . . . . . . . 1 . map_route 1 | . . . . . . . . . 1 . mark_security 1 | . . . . . . . . . 1 . redirect_shields 1 | . . . . . . . . . 1 . link_fov 1 | . . . . . . . . . 1 . disrupt_area 2 | . . . . . . . . . 2 . spike_heat 1 | . . . . . . . . . 1 . overwrite_iff 11 | . . . . . . . . 4 3 4 formatsys_high 4 | . . . . . . . . 2 2 . Relay Couplers Released 37 | . . . . . . 10 . 17 4 6 Machine Destruction 33 | . . . . . . 10 . 17 . 6 Programmers 4 | . . . . . . . . . 4 . Attached 12 | . . . . . . . . 5 5 2 Robots Rewired 6 | . . . . . . . . . . 6 Allies Hacked . | . . . . . . . . . . . Hacks Repelled . | . . . . . . . . . . . Allies | -11 -10 -10 -9 -9 -8 -8 -8 -8 -7 -7 -------- Run | Scr Mat Min Mat Min Mat Gar Mat Gar Fac Gar Total Allies 31 | . 1 2 . 2 . . 2 6 8 10 Largest Group 6 | . 1 2 2 2 . . 2 3 4 6 Highest-Rated Group 138 | . 10 62 62 42 . . 32 37 96 138 Highest-Rated Ally 32 | . 10 31 31 31 . . 16 16 32 32 Total Orders . | . . . . . . . . . . . Ally Attacks 174 | . . 4 17 21 . . . 44 25 63 Total Damage 2611 | . . 63 187 309 . . . 452 501 1099 Kills 34 | . . 3 5 7 . . . 6 5 8 Allies Corrupted . | . . . . . . . . . . . Allies Melted . | . . . . . . . . . . . Intel | -11 -10 -10 -9 -9 -8 -8 -8 -8 -7 -7 ------- Run | Scr Mat Min Mat Min Mat Gar Mat Gar Fac Gar Robot Analysis Total 6 | . 1 1 1 1 2 . . . . . Derelict Logs Recovered 4 | . . 2 . 2 . . . . . . Drone Launches . | . . . . . . . . . . . Drone Recoveries . | . . . . . . . . . . . Exploration | -11 -10 -10 -9 -9 -8 -8 -8 -8 -7 -7 ------------- Run | Scr Mat Min Mat Min Mat Gar Mat Gar Fac Gar Turns Passed 22716 | 78 1788 1560 3248 1816 2724 1494 2654 2739 3163 1452 Spaces Moved 11036 | 43 1008 815 1505 840 1248 746 1286 1323 1365 857 Core 4 | 4 . . . . . . . . . . Treads 9048 | 8 608 815 1505 840 1248 746 1286 747 908 337 Legs 947 | . . . . . . . . 576 371 . Wheels 517 | 31 400 . . . . . . . 86 . Hover 520 | . . . . . . . . . . 520 Flight . | . . . . . . . . . . . Fastest Speed 50 | 50 100 180 180 200 172 172 170 150 130 72 Average Speed 170 | 104 148 180 182 200 178 173 173 166 176 116 Slowest Speed 250 | 160 180 180 240 200 200 178 180 220 250 205 Overloaded Moves . | . . . . . . . . . . . Propulsion Burnouts . | . . . . . . . . . . . Robots Hopped . | . . . . . . . . . . . Cave-ins Triggered . | . . . . . . . . . . . Exploration Rate (%) 76 | 3 100 99 95 99 82 98 88 99 28 54 Regions Visited 10 Branch Regions 2 Pre-discovered Areas 4 | . 1 . 1 1 . . 1 . . . Known Exits Taken 6 | . 1 . 1 1 1 . 1 . 1 . Unknown Exits Taken 2 | 1 . 1 . . . . . . . . Scrap Searched 6 | . . 3 . 3 . . . . . . Spaces Dug 15 | . . . . . . . 9 . . 6 Terrain Destroyed 195 | . . . 13 26 5 49 9 79 4 10 Melee 15 | . . . . . . . 9 . . 6 Projectile 3 | . . . . . . . . . 3 . AOE 177 | . . . 13 26 5 49 . 79 1 4 Terrain Rammed . | . . . . . . . . . . . Walls Destroyed . | . . . . . . . . . . . Machines Disabled . | . . . . . . . . . . . Actions | -11 -10 -10 -9 -9 -8 -8 -8 -8 -7 -7 --------- Run | Scr Mat Min Mat Min Mat Gar Mat Gar Fac Gar Total 13756 | 63 1202 875 1841 934 1605 857 1570 1718 1927 1164 Wait 1064 | 1 56 23 144 57 205 40 103 128 213 94 Move 11025 | 42 1007 814 1504 839 1247 744 1285 1321 1365 857 Hop . | . . . . . . . . . . . Pick Up 146 | 6 30 2 23 2 16 2 8 13 36 8 Fast Attach 116 | 7 5 1 17 . 12 3 13 8 39 11 Attach 50 | 1 2 . 8 1 1 1 4 6 17 9 Detach 30 | 1 1 . . . . . . 5 13 10 Swap 116 | . 11 4 7 5 19 2 23 15 20 10 Drop 223 | . 29 7 37 4 33 4 24 16 51 18 Fire 720 | 5 61 21 95 25 69 46 98 37 168 95 Melee 102 | . . . . . . 5 9 69 . 19 Ram . | . . . . . . . . . . . Kick . | . . . . . . . . . . . Crush 22 | . . 3 6 1 3 . 3 . 2 4 Escape Stasis 81 | . . . . . . 10 . 41 2 28 Rewire 4 | . . . . . . . . 2 1 1 Trap 57 | . . . . . . . . 57 . . Miscellaneous . | . . . . . . . . . . . Route ------- -11/Scrapyard -10/Materials (discovered 5 exits: *Mat x3 / *Min x2) -10/Mines (discovered 3 exits: *Mat x2 / [*Exi]) -9/Materials (discovered 4 exits: *Mat x3 / *Min) -9/Mines (discovered 2 exits: *Mat x2) -8/Materials (discovered 4 exits: *Fac / *Sto x2 / Gar) -8/Garrison (discovered 3 exits: *Mat x3) -8/Materials (discovered 4 exits: *Fac x2 / *Sto / Gar) -8/Garrison (discovered 3 exits: *Fac x3) -7/Factory (discovered 6 exits: *Fac x3 / [*Low] / Gar / Gar) -7/Garrison (discovered 1 exit: [*Fac]) History --------- Turn | Location | Event 11 | -11/Scrapyard | Discovered new exit (range 15) 79 | -11/Scrapyard | Entered Materials 299 | -10/Materials | Repaired Assault Rifle 320 | -10/Materials | Build established: Mutant 380 | -10/Materials | Identified exit to Mines 526 | -10/Materials | Discovered new exit (range 7) 778 | -10/Materials | Discovered new exit (range 10) 1028 | -10/Materials | Discovered new exit (range 9) 1418 | -10/Materials | Build established: Hauler-Mutant 1867 | -10/Materials | Entered Mines 1867 | -10/Mines | Accompanied by 1 ally 1881 | -10/Mines | Core integrity fell below 50% 1956 | -10/Mines | Received a Rocket Launcher from a helpful Derelict 2026 | -10/Mines | Learned 2 Materials zone layouts 2159 | -10/Mines | Learned Materials terminal intel 2188 | -10/Mines | Discovered new exit (range 11) 2372 | -10/Mines | Deemed a non-threat by the Exiles lab entrance 2374 | -10/Mines | Discovered new exit (range 5) 2466 | -10/Mines | Joined a pair of Derelicts in attacking an 0b10 outpost 2688 | -10/Mines | Discovered new exit (range 15) 2722 | -10/Mines | Escorted by a lone wolf Derelict 3327 | -10/Mines | Received a Mining Laser from a helpful Derelict 3427 | -10/Mines | Entered Materials 3427 | -9/Materials | Accompanied by 2 allies 3427 | -9/Materials | Evolved 2 slots: Utility x1, Weapon x1 3428 | -9/Materials | Identified exit to Materials 3429 | -9/Materials | Loaded intel: 12 terminal locations 3559 | -9/Materials | Repaired Autogun 3987 | -9/Materials | Build established: Hauler-Tank 4160 | -9/Materials | Repaired Autogun 4548 | -9/Materials | Discovered exit to Materials (range 16) 5105 | -9/Materials | Build established: Hauler-Gunner 5509 | -9/Materials | Discovered exit to Materials (range 15) 5811 | -9/Materials | Identified exit to Mines 6390 | -9/Materials | Central database locked down 6675 | -9/Materials | Entered Mines 6813 | -9/Mines | Assembled infested the area 6818 | -9/Mines | Assisted by a Guerilla fighting off Assembled 6884 | -9/Mines | Destroyed 7 combat bots 6967 | -9/Mines | Discovered exit to Materials (range 7) 7268 | -9/Mines | Discovered exit to Materials (range 5) 7954 | -9/Mines | Learned Materials emergency access door positions 8491 | -9/Mines | Entered Materials 8491 | -8/Materials | Evolved 2 slots: Propulsion x1, Utility x1 9347 | -8/Materials | Discovered new exit (range 9) 9917 | -8/Materials | Identified exit to Storage 10645 | -8/Materials | Repaired Prc. Beam Rifle 10684 | -8/Materials | Repaired Adv. Treads 10737 | -8/Materials | Repaired Cld. Ion Engine 11214 | -8/Materials | Identified exit to Garrison 11215 | -8/Materials | Entered Garrison 11280 | -8/Garrison | Triggered checkpoint 11317 | -8/Garrison | Garrison Relay disabled 11499 | -8/Garrison | Phase Generator disabled 11614 | -8/Garrison | Triggered checkpoint 11623 | -8/Garrison | Triggered checkpoint 11666 | -8/Garrison | Triggered checkpoint 11826 | -8/Garrison | Discovered new exit (range 12) 11959 | -8/Garrison | Triggered checkpoint 12145 | -8/Garrison | Discovered new exit (range 13) 12264 | -8/Garrison | Triggered checkpoint 12488 | -8/Garrison | Discovered new exit (range 15) 12521 | -8/Garrison | Installed Relay Interface Framework 12593 | -8/Garrison | Garrison Relay disabled 12709 | -8/Garrison | Entered Materials 12747 | -8/Materials | Discovered exit to Storage (range 8) 12991 | -8/Materials | Discovered new exit (range 16) 13419 | -8/Materials | Discovered new exit (range 12) 14309 | -8/Materials | First assault squad dispatched 14341 | -8/Materials | Core integrity fell below 50% 14374 | -8/Materials | Repaired Prc. Beam Rifle 14838 | -8/Materials | Destroyed 7 combat bots 15361 | -8/Materials | Identified exit to Garrison 15363 | -8/Materials | Entered Garrison 15363 | -8/Garrison | Accompanied by 2 allies 15434 | -8/Garrison | Triggered checkpoint 15548 | -8/Garrison | Garrison Relay disabled 15704 | -8/Garrison | Triggered checkpoint 15739 | -8/Garrison | Build established: Hauler-Mutant 15782 | -8/Garrison | Triggered checkpoint 15939 | -8/Garrison | Garrison Relay disabled 15993 | -8/Garrison | Discovered new exit (range 12) 16320 | -8/Garrison | Triggered checkpoint 16448 | -8/Garrison | Lost 5 parts (1p2n2w) 16672 | -8/Garrison | Phase Generator disabled 16829 | -8/Garrison | Discovered new exit (range 11) 16966 | -8/Garrison | Triggered checkpoint 17040 | -8/Garrison | Triggered checkpoint 17243 | -8/Garrison | Discovered new exit (range 10) 17267 | -8/Garrison | Expanded RIF knowledge: Hotswap 17328 | -8/Garrison | Triggered checkpoint 17727 | -8/Garrison | Garrison Relay disabled 17754 | -8/Garrison | Build established: Bothacker-Mutant 17880 | -8/Garrison | Triggered checkpoint 18059 | -8/Garrison | Garrison Relay disabled 18102 | -8/Garrison | Entered Factory 18102 | -7/Factory | Evolved 2 slots: Utility x2 18310 | -7/Factory | Discovered new exit (range 12) 18452 | -7/Factory | Repaired Carbon-fiber Leg 18502 | -7/Factory | First assault squad dispatched 18644 | -7/Factory | Build established: Hauler-Gunner 18911 | -7/Factory | Fabricated Enh. Autogun (x1) 18946 | -7/Factory | Core integrity fell below 50% 18975 | -7/Factory | Lost 9 parts (2p1n3u3w) 19019 | -7/Factory | Destroyed 15 combat bots 19111 | -7/Factory | Build established: Hauler-Mutant 19519 | -7/Factory | Lost 3 parts (1p1n1w) 19845 | -7/Factory | Discovered new exit (range 16) 20016 | -7/Factory | Fabricated Arm. Treads (x2) 20040 | -7/Factory | Build established: Bothacker-Mutant 20529 | -7/Factory | Discovered new exit (range 5) 20851 | -7/Factory | Identified exit to Garrison 20900 | -7/Factory | Discovered new exit (range 8) 21047 | -7/Factory | Garrison activated, responded to threat 21183 | -7/Factory | Identified exit to Factory 21188 | -7/Factory | Garrison activated, responded to threat 21265 | -7/Factory | Identified exit to Garrison 21265 | -7/Factory | Entered Garrison 21265 | -7/Garrison | Accompanied by 3 allies 21286 | -7/Garrison | Triggered checkpoint 21392 | -7/Garrison | Triggered checkpoint 21539 | -7/Garrison | Garrison Relay disabled 21582 | -7/Garrison | Triggered checkpoint 21659 | -7/Garrison | Build established: Hauler-Mutant 21742 | -7/Garrison | Triggered checkpoint 21757 | -7/Garrison | Core integrity fell below 20% 21795 | -7/Garrison | Lost 3 parts (1n2w) 22268 | -7/Garrison | Triggered checkpoint 22342 | -7/Garrison | Triggered checkpoint 22381 | -7/Garrison | Garrison Relay disabled 22412 | -7/Garrison | Build established: Scavenger-Mutant 22423 | -7/Garrison | Discovered new exit (range 9) 22717 | -7/Garrison | Destroyed by Y-54 Guardian with Gatling Laser Last Messages --------------- 22655_ Lgt. Angular Momentum Engine destroyed. 22656_ Y-54 Guardian destroyed. 22659_ Acquired Gatling Laser. 22673_ Acquired Unknown Power Core. 22673_ Identified Lgt. Nuclear Core. 22675_ Acquired 20 matter. 22684_ Dropped Hcp. Battery. 22685_ Extracted 66 energy. 22685_ Acquired Hcp. Battery. 22688_ System corrupted: FCS attempts to trigger Gatling Laser. 22688_ System corrupted: Gatling Laser misfires. 22700_ System corrupted: Autogun jammed. 22700_ Y-54 Guardian destroyed. 22703_ Acquired 12 matter. 22706_ Dropped Lgt. Nuclear Core. 22707_ Acquired 10 matter. 22709_ Y-54 Guardian suffers critical hit. 22715_ Imp. Heat Sink melted. 22715_ Y-54 Guardian destroyed. 22717_ Autogun destroyed. Map ----- +----------------------------------------------------+ | ?????????????????????????????????????????????????? | | ?????????????????????????????????????????????????? | | ?????????????????????????????????????????????????? | | ??????????????????????#######????#######?????????? | | ??????????????????????#"""""#????# #?????????? | | ??????????????????????#" !"#????# #?????????? | | ??????????????????????#" ! #????# #?????????? | | ??????????????????????#" "#????# ###?????????? | | ??????????????????????#"" "#????# #???????????? | | ??????????????????????### ###????# #???????????? | | ????????????????????????# #??????# #??????????## | | ????????????????????????# #??????# #??????????# | | ????????????????????????# #????###% #??????????# | | ????????????????????????# ######* ! #??????????# | | ????????????????????????# *% %!= #??????????# | | ????????????????????????# ######%! #??????????# | | ??????????????#####?????#!#????### #??????????# | | ??????????????#! [#?????#=#??????# #??????????# | | ??????????????#! [#?????#%#??????# #??????????# | | ??????????????#! [#????##[##?????# #??????????#= | | ??????????????#! [#????#![ #???### #??????????#! | | ??????" ######## ##????#! ##### = #??????????#= | | ??????" #?????#! # % #??????????#! | | ??????" ###### ###?????#! ]##### = #??????????#* | | ?????????????# #???????#!%]#???###%= #??????????#= | | ?????????????#!#???????##@##?????#*% #??????????#! | | ??????# ######%#????????#%#??????#% #??????????# | | # + !!#????????#*#??###?# #??????????# | | ??????### #### #????????#!#??# ### #??????????# | | ?????????????# #????????#%####=# ^#??????????# | | ?????????????# #????????#%%!%%= % ^^#??????????# | | ?????????????# #????????#*#### # #??????????# | | ?????????????# ######???#=#??# ### #??????????# | | ?????????????# #???#[######## #??????????# | | ?????????????# ### ##???#%% = #??????????# | | ?????????????# #?# ####?#*########%[ #??????????# | | ?????????????# #?# #?#=#??????#* #??????????# | | ????????????###### = ###Y######## #??????????# | | ???????????## %= =! [[%%[ #??????????# | | ????? [[% =*%!=%[%= ############ | | ???? =%* =!!%*[ | | ?????######## ## [ ## ####################### | | ????????????# ## ## ###???????????????????? | | ????????????" %= #???????????????????? | | ????????????" ^ =! * #???????????????????? | | ????????????" /!* #???????????????????? | | ????????????" ^ = #???????????????????? | | ????????????# ## ##*%!###??###??????????????? | | ????????????# ?# ## / ###### ###????????????? | | ??????????? ##???????????? | +----------------------------------------------------+ Best States ------------- Heat Dissipation 67 Energy Generation 23 Energy Capacity 290 Matter Stores 300 Matter Capacity 300 Sight Range 16 Robot Scan Range 20 Terrain Scan Range 20 Terrain Scan Density 210 Armor Coverage 450 Resistance: KI 30 Resistance: TH 10 Propulsion Shielding 66 Weapon Shielding 66 Weapon Cycling 15 Melee Speed Boost 20 Evasion (%) 50 Targeting Accuracy 8 Recoil Reduction 3 Matter Filtering 30 Relay Coupler Types 39 Relay Coupler Value 2 Item Schematics ----------------- Hcp. Storage Unit | -9/Materials | Scanalyzed Adv. Beam Cannon | -9/Materials | Scanalyzed Propulsion Shielding | -9/Materials | Scanalyzed Field Recycling Unit | -9/Materials | Extracted Enh. Autogun | -8/Materials | Scanalyzed Flexi-carbon Leg | -8/Materials | Scanalyzed Imp. Propulsion Shielding | -8/Materials | Scanalyzed Adv. Targeting Computer | -8/Materials | Scanalyzed Adv. Terrain Scanner | -8/Materials | Scanalyzed Arm. Treads | -8/Materials | Scanalyzed Adv. Treads | -8/Materials | Scanalyzed Imp. Carbon-fiber Leg | -8/Materials | Scanalyzed Imp. Datajack | -8/Materials | Scanalyzed Cld. Airjet | -7/Factory | Scanalyzed Robot Schematics ------------------ None Fabricated ------------ Enh. Autogun | x1 | -7/Factory Arm. Treads | x2 | -7/Factory Alien Tech Used ----------------- None Achievements -------------- None Challenges ------------ None Game ------ Seed HardlightNuclearSource Manual? 0 Play Time 04:08:01 Cumulative 225.6 hours Start 2020.11.17 @ 21:35:34 End 2020.11.18 @ 18:07:02 Sessions 2 Manual Loads 0 Difficulty Rogue Special Mode Halloween2020/ForbiddenLore Game No. 81 Rogue 81 Adventurer 0 Explorer 0 Win Type - Total 2 Types 1/0/1/0/0/0/0/0/0 Lore% 66 Gallery% 78 Achievement% 67 Wizard Run 0 Options --------- ASCII 1 Keyboard 1 Movement Numpad Keybinds 0 Fullscreen 1 Font 16/SmallcapsGlow Map View 75x55 Tactical HUD 1 Map Filters NONE Filters NONE Steam 1 RUN: c0aac44e-bf93-481c-948f-beb67e6d0a0f